bitfinex-derivatives/quotes_ETHF0:USTF0_20250410
["timestamp","ask_amount","ask_price","bid_price","bid_amount"]
[1744300320239,13.0718,1494.9,1494.5,1.33911]
[1744300320451,3.2078,1494.9,1494.7,1.33893]
[1744300320746,11.20258,1495.2,1494.6,3.35765647]
[1744300320944,7.08101368,1495.5,1494.9,6.55467]
[1744300321145,7.08101368,1495.5,1495.4,1.33834]
[1744300321341,7.08101368,1495.5,1495.1,3.2078]
[1744300321543,7.08101368,1495.5,1495.4,1.33834]
[1744300322154,7.08101368,1495.5,1495.4,15.87544]
[1744300322353,3.09e-06,1495.5,1495.4,15.87544]
[1744300322556,7.89905467,1495.7,1495.6,1.33816]
[1744300322757,8.99912511,1495.8,1495.7,1.33807]
[1744300323055,20.79182212,1496.5,1496.2,1.33762]
[1744300323357,20.79182212,1496.5,1496.2,4.54542]
[1744300323554,3.2078,1496.9,1496.2,8.2078]
[1744300323751,4.83188879,1496.8,1496.3,9.5371]
[1744300323949,10.0,1496.9,1496.4,105.3268]
[1744300324155,4.83188879,1496.8,1496.5,9.5371]
[1744300324451,3.2078,1497.2,1496.5,9.5371]
[1744300324452,3.2078,1497.2,1496.8,1.33702]
[1744300324649,3.2078,1497.2,1496.6,3.2078]
[1744300324650,1.33713,1496.8,1496.6,3.2078]
[1744300324860,4.54474,1497.0,1496.7,1.33713]
[1744300325053,4.83188879,1496.9,1496.7,1.33712]
[1744300325253,4.83188879,1496.9,1496.5,9.5371]
[1744300325450,4.83188879,1496.8,1496.5,9.5371]
[1744300325649,14.83188879,1496.9,1496.8,1.33709]
[1744300325951,3.2078,1497.6,1497.0,1.3369]
[1744300326152,4.54438,1497.4,1496.6,3.2078]
[1744300326353,4.54438,1497.4,1496.8,3.2078]
[1744300326354,9.6026,1497.3,1496.8,3.2078]
[1744300326545,1.33691,1497.0,1496.9,0.01003647]
[1744300326746,3.34124,1497.5,1496.9,0.01003647]
[1744300326747,3.2078,1497.7,1497.5,1.33646]
[1744300326956,17.64228879,1497.9,1497.0,16.97599]
[1744300327255,17.64228879,1497.9,1497.3,3.34161]
[1744300327453,3.2078,1498.3,1497.4,10.3627]
[1744300327650,4.83188879,1498.2,1497.7,3.34072]
[1744300327847,3.2078,1498.8,1498.2,3.33957]
[1744300328055,4.83188879,1498.7,1498.6,1.33548]
[1744300328252,13.4004,1499.0,1498.9,1.33521]
[1744300328554,1.33566,1498.4,1498.2,1.3358]
[1744300328756,5.45639353,1498.4,1497.9,10.3627]
[1744300329057,8.03968879,1498.3,1497.2,105.2718]
[1744300329353,8.03968879,1498.3,1497.4,3.34139]
[1744300329554,3.2078,1498.6,1497.4,30.04996181]
[1744300329763,3.2078,1498.6,1497.9,3.34027]
[1744300329963,0.01003647,1498.1,1498.0,11.69872]
[1744300330256,1.33602,1498.0,1497.9,0.01003647]
[1744300330450,9.37570879,1498.0,1497.9,0.01003647]
[1744300330649,9.37570879,1498.0,1497.6,10.3083]
[1744300330650,4.83188879,1497.9,1497.3,4.9749]
[1744300330856,4.83188879,1497.9,1497.4,3.34139]
[1744300331058,0.01003647,1498.1,1498.0,1.33602]
[1744300331757,4.84192526,1498.1,1498.0,1.33602]
[1744300331953,3.2078,1498.8,1498.6,1.3354]
[1744300332154,3.2078,1498.8,1498.1,1.33588]
[1744300332155,14.79818879,1498.7,1498.1,1.33588]
[1744300332359,3.2078,1498.6,1497.9,0.01003647]
[1744300332558,1.33579,1498.3,1498.1,1.33593]
[1744300332752,9.9663,1498.5,1498.4,1.33566]
[1744300332957,3.2078,1498.8,1498.3,3.33938]
[1744300333157,0.01003647,1498.6,1498.5,1.33557]
[1744300333355,3.21783647,1498.6,1498.2,101.939]
[1744300333555,3.21783647,1498.6,1498.0,4.7412]
[1744300333862,1.33586,1498.2,1498.0,1.33597]
[1744300334058,1.33586,1498.2,1497.9,40.81003647]
[1744300334059,3.2078,1498.3,1498.2,1.33584]
[1744300334260,1.33602,1498.0,1497.9,0.01003647]
[1744300334462,3.2078,1498.1,1497.0,1.33688]
[1744300334762,3.2078,1497.3,1496.5,4.01134]
[1744300334959,9.4857,1497.2,1496.6,13.15714]
[1744300335157,3.2078,1496.9,1496.6,9.814]
[1744300335466,3.2078,1496.9,1496.2,8.96736]
[1744300335661,6.16902879,1496.8,1496.6,0.01003647]
[1744300335857,15.65472879,1496.8,1496.6,0.01003647]
[1744300336054,4.83188879,1496.7,1496.6,1.34730647]
[1744300336258,0.01003647,1496.9,1496.8,1.33709]
[1744300336458,4.84192526,1496.9,1496.8,1.33709]
[1744300336963,9.84192526,1496.9,1496.6,0.01003647]
[1744300337158,4.54498,1496.7,1496.6,0.01003647]
[1744300337363,1.33759,1496.3,1495.7,3.34517]
[1744300337552,3.2078,1496.4,1495.9,9.7184]
[1744300337752,10.3305,1496.2,1496.1,1.33771]
[1744300337967,4.83188879,1496.3,1496.2,1.33762]
[1744300338163,4.83188879,1496.3,1495.9,9.7184]
[1744300338365,4.83188879,1496.3,1496.2,1.33762]
[1744300339071,3.2078,1497.1,1496.9,1.33697]
[1744300339263,1.33701,1496.9,1496.3,13.06224]
[1744300339567,1.33734,1496.6,1496.3,9.7184]
[1744300339756,3.2078,1496.7,1496.2,101.926]
[1744300339953,12.85532879,1496.6,1496.1,9.527]
[1744300340163,12.86536526,1496.6,1496.5,1.33736]
[1744300340461,6.47e-06,1496.6,1496.5,1.33736]
[1744300340855,6.47e-06,1496.6,1496.5,6.33736]
[1744300341063,4.33966879,1497.1,1496.9,1.33696]
[1744300341358,3.00282879,1497.1,1497.0,1.33691]
[1744300341558,3.00282879,1497.0,1496.9,1.337]
[1744300341759,3.00282879,1497.1,1497.0,1.33691]
[1744300342865,0.01003647,1497.2,1497.1,1.33682]
[1744300343060,3.2078,1497.9,1497.8,1.33619]
[1744300343565,9.57387879,1497.9,1497.8,1.33619]
[1744300343758,3.2078,1499.0,1498.4,1.3356]
[1744300344065,3.2078,1499.0,1498.6,3.2078]
[1744300344366,3.33871,1498.6,1497.6,3.2078]
[1744300344670,1.33609,1498.0,1497.6,4.54411]
[1744300344865,9.6941,1497.9,1497.4,3.2078]
[1744300345059,9.6941,1497.9,1497.8,1.33619]
[1744300345365,8.0978,1498.5,1497.9,3.34023]
[1744300345366,4.7588,1498.5,1497.9,3.34023]
[1744300345561,10.3218,1498.4,1498.3,4.54355]
[1744300345760,6.54569,1499.0,1498.4,1.33564]
[1744300345963,0.01003647,1498.5,1498.3,3.2078]
[1744300346163,0.01003647,1498.5,1498.3,1.3357]
[1744300346363,10.33183647,1498.5,1498.3,3.21783647]
[1744300346562,10.33183647,1498.5,1498.4,1.33566]
[1744300346763,10.33183647,1498.5,1498.3,3.21783647]
[1744300346962,1.33566,1498.4,1498.3,0.01003647]
[1744300347455,16.65746,1498.4,1498.3,0.01003647]
[1744300347656,0.01003647,1498.5,1498.4,1.33566]
[1744300347856,10.33183647,1498.5,1498.3,1.34572647]
[1744300348056,10.33183647,1498.5,1498.4,1.33566]
[1744300348462,1.33566,1498.4,1498.3,0.01003647]
[1744300348662,15.33183647,1498.5,1498.3,0.01003647]
[1744300348863,15.33183647,1498.5,1498.4,1.33566]
[1744300349063,3.2078,1499.7,1498.8,3.33811]
[1744300349259,3.33671,1499.5,1498.8,3.2078]
[1744300349566,1.33498,1499.2,1498.9,1.33516]
[1744300349767,8.4236,1499.6,1498.8,3.2078]
[1744300349969,3.33671,1499.5,1498.8,3.2078]
[1744300350163,0.35147056,1499.2,1498.8,3.2078]
[1744300350563,1.33504,1499.1,1499.0,0.01003647]
[1744300350769,0.35147056,1499.2,1499.1,1.33504]
[1744300350972,1.68647056,1499.2,1499.0,0.01003647]
[1744300351265,0.35147056,1499.1,1499.0,0.01003647]
[1744300351668,6.68651056,1499.1,1499.0,0.01003647]
[1744300351966,1.33587,1498.2,1497.6,6.54856]
[1744300352167,6.54653,1498.6,1497.7,3.2078]
[1744300352376,3.2078,1498.6,1497.7,6.54838]
[1744300352569,6.54702,1498.4,1497.7,1.88993]
[1744300352768,9.7959,1498.5,1497.7,1.88993]
[1744300352769,13.0037,1498.3,1497.7,5.09773]
[1744300352965,0.01003647,1498.2,1497.9,0.01003647]
[1744300353173,6.47e-06,1498.2,1498.1,1.33593]
[1744300353465,9.79590647,1498.2,1497.9,3.21783647]
[1744300353669,9.79590647,1498.2,1497.9,0.01003647]
[1744300353872,9.79590647,1498.2,1498.1,1.33593]
[1744300354167,3.20780647,1498.2,1497.9,0.01003647]
[1744300354374,4.54382,1498.0,1497.9,0.01003647]
[1744300354869,5.0,1498.0,1497.9,0.01003647]
[1744300355067,6.47e-06,1498.2,1498.1,1.33593]
[1744300355265,6.47e-06,1498.2,1498.1,4.54373]
[1744300355573,6.47e-06,1498.2,1498.1,3.22586]
[1744300355770,6.47e-06,1498.2,1498.1,1.33593]
[1744300355968,3.2078,1499.0,1498.2,3.3396]
[1744300356165,1.33553,1498.6,1498.3,3.2078]
[1744300356365,11.72958,1498.5,1498.3,3.2078]
[1744300356565,1.33587,1498.2,1497.9,3.2078]
[1744300356772,10.394,1498.1,1498.0,1.33595]
[1744300356972,1.33595,1498.1,1497.9,3.2078]
[1744300357176,10.394,1498.2,1497.9,4.55386647]
[1744300357375,10.394,1498.2,1497.9,4.55391647]
[1744300357571,3.2078,1498.7,1497.9,3.21783647]
[1744300357771,9.6028,1498.3,1497.9,14.16427647]
[1744300358075,10.9386,1498.3,1498.0,3.2078]
[1744300358265,16.14998,1498.3,1498.0,3.2078]
[1744300358465,1.33602,1498.0,1497.9,0.01003647]
[1744300358667,1.33599,1498.1,1497.9,1.34606647]
[1744300358874,0.34726505,1498.0,1497.9,1.34606647]
[1744300359073,0.34726505,1498.0,1497.9,15.95646647]
[1744300359270,0.34726505,1498.0,1497.9,10.95646647]
[1744300359671,0.34726505,1498.0,1497.9,15.95646647]
[1744300360077,0.34726505,1498.0,1497.9,10.95646647]
[1744300360269,1.68328505,1498.0,1497.9,0.01003647]
[1744300360667,0.34726505,1498.0,1497.9,1.34614647]
[1744300360874,1.68328505,1498.0,1497.9,0.01003647]
[1744300361275,6.68328505,1498.0,1497.9,0.01003647]
[1744300361476,1.33641,1497.6,1497.4,3.2078]
[1744300361677,13.51156,1497.9,1497.3,1.33657]
[1744300361882,0.34726505,1497.6,1497.2,12.7103]
[1744300362078,10.1712,1497.5,1497.4,3.2078]
[1744300362478,10.1712,1497.5,1497.2,12.7103]
[1744300362781,1.68791176,1497.4,1497.3,0.01003647]
[1744300363178,9.89571176,1497.4,1496.7,3.2078]
[1744300363387,1.33721,1496.7,1496.6,3.2078]
[1744300363576,3.69769877,1497.1,1496.4,12.7103]
[1744300363776,0.35545877,1497.1,1496.6,3.2078]
[1744300364076,10.5038,1497.0,1496.6,3.2078]
[1744300364274,10.5038,1497.0,1496.7,10.4176]
[1744300364470,0.36549524,1496.9,1496.7,10.42763647]
[1744300364683,1.70249524,1496.9,1496.7,11.76474647]
[1744300364875,0.36549524,1496.9,1496.7,10.42763647]
[1744300365276,1.33709,1496.8,1496.7,0.01003647]
[1744300365480,11.84089,1496.8,1496.7,0.01003647]
[1744300365686,17.19634877,1496.8,1496.7,0.01003647]
[1744300365985,0.35545877,1496.8,1496.7,4.55501647]
[1744300366282,0.35545877,1496.8,1496.7,9.55501647]
[1744300366782,0.01003647,1496.9,1496.8,1.33709]
[1744300366983,9.4828,1497.4,1496.8,13.57959]
[1744300367279,9.4828,1497.9,1497.3,3.2078]
[1744300367481,1.33637,1497.6,1497.5,3.2078]
[1744300367679,12.82315,1497.9,1497.5,3.2078]
[1744300367873,1.33637,1497.6,1497.5,3.2078]
[1744300368079,1.33628,1497.7,1497.6,0.01003647]
[1744300368475,1.33664,1497.3,1497.2,3.2078]
[1744300368676,1.33676,1497.2,1496.9,3.2078]
[1744300368881,3.34184,1497.2,1496.9,3.2078]
[1744300369082,3.34206,1497.1,1496.7,4.54493]
[1744300369283,1.33708,1496.9,1496.7,4.54493]
[1744300369486,3.34184,1497.2,1496.7,4.54493]
[1744300369686,1.34704647,1496.9,1496.7,3.21783647]
[1744300369895,0.01003647,1496.9,1496.8,1.33709]
[1744300370093,0.01003647,1496.9,1496.8,11.11599]
[1744300370295,0.01003647,1496.9,1496.8,16.11599]
[1744300370595,1.33659,1497.4,1497.2,1.33664]
[1744300370784,1.33659,1497.4,1497.0,3.3422]
[1744300370785,1.33659,1497.4,1497.3,3.2078]
[1744300370985,1.33673,1497.2,1497.1,12.9867]
[1744300371188,1.33671,1497.3,1497.1,12.9867]
[1744300371384,3.34094,1497.6,1497.1,12.9867]
[1744300371593,1.34667647,1497.3,1497.2,9.7789]
[1744300372099,1.34667647,1497.3,1497.1,3.2078]
[1744300372100,1.33694,1497.0,1496.9,3.2078]
[1744300372399,1.33689,1497.1,1496.9,1.337]
[1744300372589,1.33689,1497.1,1497.0,9.7789]
[1744300373398,1.33682,1497.1,1497.0,9.7789]
[1744300373791,1.33682,1497.1,1497.0,11.11581]
[1744300373986,1.337,1496.9,1496.8,9.6052]
[1744300374797,1.33693,1497.0,1496.9,1.33697]
[1744300374987,1.33693,1497.0,1496.9,1.337]
[1744300375192,1.68873222,1497.0,1496.9,1.337]
[1744300375393,1.68871222,1497.0,1496.9,9.6052]
[1744300375598,0.35180222,1497.0,1496.9,15.9422]
[1744300375992,0.35180222,1497.0,1496.9,14.6052]
[1744300376296,0.35180222,1497.0,1496.9,10.9422]
[1744300377299,0.35180222,1497.0,1496.9,15.9422]
[1744300378002,0.01003647,1497.3,1497.2,1.33673]
[1744300378192,0.01003647,1497.3,1497.2,4.54453]
[1744300378495,0.01003647,1497.3,1497.2,9.54453]
[1744300378998,3.33967,1498.2,1497.4,3.34129]
[1744300379205,1.33606,1498.0,1497.9,3.2078]
[1744300379706,1.33623,1497.8,1497.6,44.0078]
[1744300380002,3.33963,1498.2,1497.7,9.6066]
[1744300380204,3.33963,1498.2,1497.8,3.2078]
[1744300380403,3.33963,1498.2,1496.8,3.2078]
[1744300380404,1.33666,1497.3,1496.8,3.2078]
[1744300380600,3.34168,1497.3,1496.8,3.2078]
[1744300380791,6.54995,1497.1,1496.4,9.6066]
[1744300380991,3.34206,1497.1,1496.5,3.2078]
[1744300381196,1.33726,1496.7,1496.6,9.6066]
[1744300381397,3.34231,1497.0,1496.5,4.54514]
[1744300381594,1.33721,1496.7,1496.5,4.55515647]
[1744300381800,0.01003647,1496.8,1496.5,9.61663647]
[1744300382194,1.33727,1496.6,1496.5,0.01003647]
[1744300382497,0.01003647,1496.8,1496.5,0.01003647]
[1744300382702,0.01003647,1496.8,1496.7,1.33718]
[1744300382896,1.33671,1497.3,1496.7,11.50398]
[1744300383104,105.0858,1498.0,1497.2,3.2078]
[1744300383400,3.34105,1497.6,1497.0,3.2078]
[1744300383599,0.09043751,1497.3,1497.0,3.2078]
[1744300383908,0.09043751,1497.3,1497.2,4.54453]
[1744300384105,7.51e-06,1497.3,1497.2,4.54453]
[1744300384403,3.2078,1498.0,1497.2,8.2078]
[1744300384706,11.73759,1498.2,1497.6,3.2078]
[1744300384902,3.33983,1498.1,1497.6,3.2078]
[1744300385104,1.3364,1497.6,1497.4,3.2078]
[1744300385301,1.33611,1497.9,1497.7,1.3362]
[1744300385606,4.57696561,1498.0,1497.4,0.01003647]
[1744300385607,1.33646,1497.5,1497.4,0.01003647]
[1744300385907,4.54426,1497.5,1497.4,0.01003647]
[1744300386103,3.2078,1497.6,1497.4,0.01003647]
[1744300386309,1.33646,1497.5,1497.4,0.01003647]
[1744300386509,3.2078,1497.6,1497.4,0.01003647]
[1744300386903,9.12083561,1498.0,1497.8,1.33615]
[1744300387311,7.78476561,1498.0,1497.7,3.2078]
[1744300387511,4.57696561,1498.0,1497.9,1.33611]
[1744300388013,4.57696561,1498.0,1497.6,9.5657]
[1744300388212,4.57696561,1498.0,1497.5,3.2078]
[1744300388213,10.0236,1497.9,1497.4,0.01003647]
[1744300388508,10.0236,1497.9,1497.4,10.43613647]
[1744300388812,1.33716,1496.8,1496.6,4.54505]
[1744300389008,3.34228,1497.0,1496.4,10.4261]
[1744300389207,13.2314,1497.1,1496.4,10.4261]
[1744300389603,11.36049,1497.1,1496.9,1.33698]
[1744300389915,11.37051647,1497.1,1496.9,1.34700647]
[1744300390111,1.33691,1497.0,1496.9,0.01003647]
[1744300390412,1.33691,1497.0,1496.7,10.38500867]
[1744300390413,1.33709,1496.8,1496.7,3.09710808]
[1744300390604,1.33718,1496.7,1496.6,11.62282084]
[1744300390806,0.01003647,1497.1,1496.9,1.33695]
[1744300391007,0.01003647,1497.1,1497.0,1.33691]
[1744300391206,3.3405,1497.8,1497.0,9.54471]
[1744300391408,8.29748,1497.9,1497.4,1.33651]
[1744300391711,6.29337,1497.9,1497.5,44.0078]
[1744300392014,0.0904451,1497.7,1497.5,44.0078]
[1744300392202,0.0904451,1497.7,1497.5,4.54424]
[1744300392402,0.10048157,1497.7,1497.6,1.33637]
[1744300392602,0.10048157,1497.7,1497.6,40.8]
[1744300392804,0.10048157,1497.7,1497.6,42.13637]
[1744300394409,0.10048157,1497.7,1497.6,47.13637]
[1744300394606,0.10048157,1497.7,1497.6,42.13637]
[1744300395910,0.10048157,1497.7,1497.6,47.13637]
[1744300396719,1.33589,1498.2,1498.0,1.33593]
[1744300397014,8.20146,1498.5,1498.0,1.33593]
[1744300397015,9.906,1498.3,1498.0,3.2078]
[1744300397419,1.33589,1498.2,1498.0,4.54375]
[1744300397611,4.8624,1498.5,1498.2,1.33576]
[1744300397914,4.57696561,1499.1,1498.4,3.2078]
[1744300398215,11.44806,1498.9,1498.7,3.2078]
[1744300398515,10.1128,1498.9,1498.7,3.2078]
[1744300398711,1.33539,1498.7,1498.6,0.01003647]
[1744300399218,6.33539,1498.7,1498.6,0.01003647]
[1744300399518,5.0,1498.7,1498.6,0.01003647]
[1744300399720,1.33534,1498.8,1498.6,1.34546647]
[1744300399912,11.44819,1498.7,1498.6,0.01003647]
[1744300400113,10.1128,1498.7,1498.6,4.55331647]
[1744300400305,1.33519,1499.0,1498.7,1.33535]
[1744300400504,10.0946,1499.1,1498.6,3.21783647]
[1744300400705,0.09043775,1498.9,1498.7,40.8]
[1744300400910,10.0946,1498.8,1498.7,45.34319]
[1744300401321,0.09043775,1498.9,1498.8,1.3353]
[1744300401811,7.75e-06,1498.9,1498.8,6.3353]
[1744300402012,4.57696561,1499.2,1499.1,1.33504]
[1744300402205,4.57696561,1499.2,1499.1,4.54284]
[1744300402413,4.57696561,1499.2,1499.1,50.34284]
[1744300402921,4.57696561,1499.2,1499.1,45.34284]
[1744300403120,4.57696561,1499.2,1499.1,50.34284]
[1744300403504,4.57696561,1499.2,1499.1,45.34284]
[1744300403713,4.57696561,1499.2,1499.1,44.0078]
[1744300404009,5.91191561,1499.2,1499.1,44.0078]
[1744300404205,9.5618,1499.4,1499.1,44.0078]
[1744300404409,1.33495,1499.2,1499.1,40.8]
[1744300404610,1.3353,1498.8,1498.7,3.2078]
[1744300404912,9.5618,1499.1,1498.7,3.2078]
[1744300405112,10.89688,1499.1,1498.9,3.2078]
[1744300405712,9.5618,1499.1,1498.8,44.0078]
[1744300405921,1.33521,1498.9,1498.8,44.0078]
[1744300406212,1.33539,1498.7,1498.6,0.01003647]
[1744300407705,10.0681,1498.8,1498.6,3.21783647]
[1744300407910,1.33516,1499.0,1498.8,1.33522]
[1744300408107,1.33516,1499.0,1498.9,3.2078]
[1744300408616,13.40571,1499.1,1498.7,3.2078]
[1744300408919,1.3353,1498.8,1498.7,3.2078]
[1744300409213,10.0681,1498.9,1498.7,3.2078]
[1744300409419,0.09044526,1498.8,1498.7,4.54319]
[1744300409619,0.09044526,1498.8,1498.7,14.18829]
[1744300409810,0.09044526,1498.8,1498.7,19.18829]
[1744300410007,0.09044526,1498.8,1498.7,14.18829]
[1744300410220,0.09044526,1498.8,1498.7,53.6529]
[1744300410412,1.42574526,1498.8,1498.7,3.2078]
[1744300410613,0.09044526,1498.8,1498.7,9.54319]
[1744300410809,1.33479,1499.4,1498.9,3.33791]
[1744300411017,1.33475,1499.5,1499.3,4.54263]
[1744300411216,9.7407,1499.7,1499.3,3.2078]
[1744300411419,9.7407,1499.7,1499.5,3.2078]
[1744300411615,11.07527,1499.7,1499.5,4.54248]
[1744300412021,11.07527,1499.7,1499.4,1.34474647]
[1744300412022,1.33461,1499.6,1499.4,1.34474647]
[1744300412222,1.33468,1499.5,1499.4,0.01003647]
[1744300412423,10.2912,1499.5,1499.4,1.34480647]
[1744300412619,1.33457,1499.7,1499.5,1.33461]
[1744300412819,10.2912,1499.8,1499.4,0.01003647]
[1744300413019,4.8438,1500.0,1499.7,1.33443]
[1744300413223,1.33441,1499.8,1499.7,1.33443]
[1744300413419,10.2912,1499.9,1499.8,1.33441]
[1744300413615,1.33417,1500.1,1499.7,3.33626]
[1744300413924,10.2912,1500.3,1500.0,3.2078]
[1744300414122,11.62522,1500.3,1500.1,1.3341]
[1744300414417,0.01603116,1500.6,1500.2,3.2078]
[1744300414612,10.30723116,1500.6,1500.2,3.2078]
[1744300414815,1.33382,1500.5,1500.3,1.33391]
[1744300415122,1.33397,1500.3,1500.2,0.01000267]
[1744300415422,0.01603116,1500.6,1500.2,3.21780267]
[1744300415619,0.01603116,1500.6,1500.2,0.01000267]
[1744300415812,0.01603116,1500.6,1500.3,40.8]
[1744300416012,10.03463116,1500.6,1500.3,40.8]
[1744300416213,10.03463116,1500.6,1500.4,3.2078]
[1744300416414,11.36835116,1500.6,1500.4,13.2653]
[1744300416614,10.03463116,1500.6,1500.4,14.59912]
[1744300416817,5.95572579,1501.0,1500.4,21.59987]
[1744300417013,0.11598589,1502.1,1501.3,3.33271]
[1744300417209,13.2264,1502.6,1501.9,3.2078]
[1744300417419,10.0186,1502.6,1501.9,3.2078]
[1744300417619,10.0186,1502.6,1502.1,3.2078]
[1744300417917,4.75930444,1502.2,1502.1,1.34237267]
[1744300418110,6.09158444,1502.2,1502.1,0.01000267]
[1744300418311,4.75930444,1502.2,1502.1,3.21780267]
[1744300418514,4.75930444,1502.2,1502.1,9.55017267]
[1744300418716,0.09024269,1502.4,1502.1,109.96480267]
[1744300418913,1.85525792,1503.8,1503.4,1.33118]
[1744300419112,27.68985359,1504.2,1503.5,40.8]
[1744300419113,9.7947,1503.9,1503.5,40.8]
[1744300419321,1.33104,1503.6,1503.5,3.2078]
[1744300419522,3.2078,1503.6,1503.2,3.2078]
[1744300419718,9.7947,1503.5,1503.2,3.20781294]
[1744300419919,9.7947,1503.5,1503.3,3.20781294]
[1744300420115,3.2078,1503.7,1503.3,40.8]
[1744300420422,3.2078,1504.0,1503.4,3.20781294]
[1744300420623,1.33107,1503.6,1503.2,3.2078]
[1744300420824,0.00988999,1503.9,1503.5,42.14108267]
[1744300421027,16.09983064,1504.2,1504.1,1.3306]
[1744300421225,1.33034,1504.4,1504.1,8.2078]
[1744300421526,3.2078,1504.8,1504.2,9.8647]
[1744300421724,1.33033,1504.4,1504.3,40.8]
[1744300421924,3.2078,1504.7,1504.3,40.8]
[1744300422124,1.33069,1504.0,1503.9,3.2078]
[1744300422326,1.33078,1503.9,1503.8,3.2078]
[1744300422520,8.2078,1503.9,1503.8,0.00996942]
[1744300422720,8.2078,1503.9,1503.8,9.42e-06]
[1744300422721,1.33078,1503.9,1503.8,9.42e-06]
[1744300422921,9.53858,1503.9,1503.8,9.42e-06]
[1744300423631,4.53858,1503.9,1503.8,9.42e-06]
[1744300423833,1.33078,1503.9,1503.8,9.42e-06]
[1744300424233,6.33078,1503.9,1503.8,9.42e-06]
[1744300424925,1.33157,1503.0,1502.9,20.59793379]
[1744300425523,6.33157,1503.0,1502.9,20.59793379]
[1744300425724,6.33157,1503.0,1502.9,10.8480938]
[1744300425925,6.33157,1503.0,1502.9,8.8948738]
[1744300426126,16.69020556,1503.0,1502.9,5.9812238]
[1744300426435,16.69020556,1503.0,1502.1,3.2078]
[1744300426436,3.32916,1502.9,1502.1,3.2078]
[1744300426634,1.33246,1502.0,1501.9,9.19900264]
[1744300426830,1.33255,1501.9,1501.8,39.96430507]
[1744300427138,1.33255,1501.9,1501.7,10.0457]
[1744300427139,1.33289,1501.6,1501.4,3.2078]
[1744300427431,1.33281,1501.6,1501.5,5.99120264]
[1744300427631,0.00996942,1501.7,1501.4,3.2078]
[1744300427833,0.00996942,1501.7,1501.4,9.19900264]
[1744300428023,0.00996942,1501.7,1501.5,5.99120264]
[1744300428221,0.09003556,1501.6,1501.5,16.46890264]
[1744300428424,0.09003556,1501.6,1501.5,20.0184]
[1744300428624,0.09003556,1501.6,1501.5,24.67670264]
[1744300428825,0.09003556,1501.6,1501.5,19.67670264]
[1744300429026,3.2078,1502.1,1501.6,5.99120264]
[1744300429226,4.54019,1502.1,1501.7,4.54045]
[1744300429432,1.33254,1502.0,1501.7,19.67670264]
[1744300429631,3.2078,1502.1,1501.7,10.4777]
[1744300429836,10.2764,1501.9,1501.7,5.99120264]
[1744300430226,10.2764,1501.9,1501.8,5.99120264]
[1744300430531,3.21765863,1502.1,1501.8,5.99120264]
[1744300430532,3.21765863,1502.1,1501.8,4.54036]
[1744300430731,0.00985863,1502.1,1501.9,17.20091264]
[1744300431032,3.2078,1502.7,1502.1,1.3323]
[1744300431234,12.7485,1502.7,1502.1,3.2078]
[1744300431438,1.33219,1502.3,1502.2,5.99120264]
[1744300431731,3.2078,1502.5,1502.2,5.99120264]
[1744300431931,12.7485,1502.7,1502.3,5.99120264]
[1744300432134,3.2078,1502.7,1502.3,9.19900264]
[1744300432335,3.2078,1502.5,1502.2,9.88716942]
[1744300432535,4.53999,1502.3,1502.2,0.00996942]
[1744300433034,1.33219,1502.3,1502.2,0.00996942]
[1744300433429,4.53999,1502.3,1502.2,0.00996942]
[1744300433643,9.53999,1502.3,1502.2,0.00996942]
[1744300433826,111.11999,1502.3,1502.2,9.42e-06]
[1744300434338,5.0,1502.3,1502.2,9.42e-06]
[1744300434636,3.2078,1502.7,1502.2,9.42e-06]
[1744300434833,3.2078,1502.4,1502.2,16.06751206]
[1744300435033,1.33219,1502.3,1502.2,10.07630942]
[1744300435238,1.33219,1502.3,1502.2,9.42e-06]
[1744300435441,0.00996,1502.6,1502.5,1.33202]
[1744300435734,1.33171,1502.9,1502.4,13.2841]
[1744300435934,1.33146,1503.2,1502.9,1.33162]
[1744300436239,3.45999756,1503.9,1503.0,6.5367]
[1744300436435,3.2078,1503.5,1503.0,3.2078]
[1744300436628,1.33139,1503.2,1503.1,5.98124264]
[1744300436831,1.33139,1503.2,1503.1,0.00996942]
[1744300437536,101.58,1503.5,1503.1,0.00996942]
[1744300437726,13.2036,1503.4,1503.1,0.00996942]
[1744300438039,1.33139,1503.2,1503.1,5.99121206]
[1744300438541,1.33139,1503.2,1503.1,0.00996942]
[1744300439129,9.9958,1503.4,1503.1,0.00996942]
[1744300439438,3.34078756,1503.9,1503.2,5.98124264]
[1744300439633,0.1329964,1503.8,1503.3,12.9928]
[1744300439834,1.33111,1503.6,1503.4,9.785]
[1744300440031,0.1329964,1503.8,1503.5,1.33112]
[1744300440238,1.33095,1503.7,1503.6,9.785]
[1744300440439,1.33095,1503.7,1503.5,5.98124264]
[1744300440440,1.33139,1503.2,1503.1,3.21776942]
[1744300440636,1.33139,1503.2,1503.1,0.00996942]
[1744300441030,3.32901,1503.0,1502.6,3.2078]
[1744300441338,3.32939,1502.8,1502.2,3.2078]
[1744300441537,3.32939,1502.8,1502.3,14.19290264]
[1744300441733,10.4317,1502.8,1502.4,9.785]
[1744300441937,1.33195,1502.6,1502.4,17.40070264]
[1744300442135,1.33196,1502.6,1502.5,4.40790264]
[1744300442536,1.33193,1502.6,1502.5,4.40790264]
[1744300443038,0.09003566,1502.6,1502.5,4.40790264]
[1744300443236,1.33202,1502.5,1502.4,10.1341]
[1744300443437,1.3321,1502.4,1502.3,0.00996942]
[1744300443648,4.5399,1502.4,1502.3,0.00996942]
[1744300443844,19.85443566,1502.4,1502.3,9.42e-06]
[1744300444439,20.21485412,1502.4,1502.3,9.42e-06]
[1744300444640,25.54331412,1502.4,1501.2,13.4493]
[1744300444941,0.09003566,1501.8,1501.3,14.54200264]
[1744300445242,0.09003566,1501.8,1501.3,4.40790264]
[1744300445442,0.09003566,1501.8,1501.7,1.33272]
[1744300445841,3.33027,1502.4,1501.7,19.14420264]
[1744300446039,0.00996942,1501.9,1501.8,7.61570264]
[1744300446441,10.1615,1502.4,1501.8,13.94834264]
[1744300446643,1.33213,1502.4,1502.1,4.54014]
[1744300446939,1.33213,1502.4,1501.9,4.40790264]